lending/lending_fUSD_20250808
["ID","MTS","AMOUNT","RATE_DAILY","PERIOD"]
[378028814,1754674316132,-400.0,0.00019488,2]
[378028815,1754674316142,-643.05,0.00019488,2]
[378028816,1754674316151,-760.76,0.00019488,2]
[378028817,1754674316162,-400.0,0.00019488,2]
[378028818,1754674316172,-489.19,0.00019488,2]
[378028819,1754674316182,-576.62,0.00019488,2]
[378028820,1754674316191,-437.71,0.00019488,2]
[378028821,1754674316200,-704.59,0.00019488,2]
[378028822,1754674316210,-400.0,0.00019488,2]
[378028823,1754674316219,-1259.56,0.00019488,2]
[378028824,1754674316229,-919.49,0.00019488,2]
[378028825,1754674316238,-508.27,0.00019488,2]
[378028826,1754674316248,-400.0,0.00019488,2]
[378028827,1754674316257,-400.0,0.00019488,2]
[378028828,1754674316267,-1124.56,0.00019488,2]
[378028829,1754674316277,-2507.35,0.00019488,2]
[378028830,1754674316286,-424.0,0.00019488,2]
[378028831,1754674316296,-400.0,0.00019488,2]
[378028832,1754674316306,-1219.23,0.00019488,2]
[378028833,1754674316318,-400.0,0.00019488,2]
[378028834,1754674316327,-400.0,0.00019488,2]
[378028835,1754674316336,-738.95,0.00019488,2]
[378028836,1754674316346,-3428.22,0.00019488,2]
[378028837,1754674316355,-739.75,0.00019488,2]
[378028838,1754674316365,-705.62,0.00019488,2]
[378028839,1754674316374,-400.0,0.00019488,2]
[378028840,1754674316383,-429.41,0.00019488,2]
[378028841,1754674316393,-408.09,0.00019488,2]
[378028842,1754674316402,-22590.06,0.00019488,2]
[378028843,1754674316412,-400.0,0.00019488,2]
[378028844,1754674316421,-400.0,0.00019488,2]
[378028845,1754674316431,-444.79,0.00019488,2]
[378028846,1754674316441,-400.0,0.00019488,2]
[378028847,1754674316451,-1009.83,0.00019488,2]
[378028848,1754674316465,-400.0,0.00019488,2]
[378028849,1754674316474,-400.0,0.00019488,2]
[378028850,1754674316484,-612.57,0.00019488,2]
[378028851,1754674316494,-400.0,0.00019488,2]
[378028852,1754674316503,-1019.52,0.00019488,2]
[378028853,1754674316513,-412.85,0.00019488,2]
[378028854,1754674316522,-400.0,0.00019488,2]
[378028855,1754674316532,-400.0,0.00019488,2]
[378028856,1754674316543,-602.24,0.00019488,2]
[378028857,1754674316553,-400.0,0.00019488,2]
[378028858,1754674316562,-400.0,0.00019488,2]
[378028859,1754674316572,-702.83,0.00019488,2]
[378028860,1754674316582,-400.0,0.00019488,2]
[378028861,1754674316592,-400.0,0.00019488,2]
[378028862,1754674316602,-401.02,0.00019488,2]
[378028863,1754674316612,-400.0,0.00019488,2]
[378028864,1754674316621,-480.03,0.00019488,2]
[378028865,1754674316637,-414.37,0.00019488,2]
[378028866,1754674316652,-400.0,0.00019488,2]
[378028867,1754674316662,-420.84,0.00019488,2]
[378028868,1754674316676,-469.13,0.00019488,2]
[378028869,1754674316687,-1156.43,0.00019488,2]
[378028870,1754674316698,-1173.27,0.00019488,2]
[378028871,1754674316714,-2082.95,0.00019488,2]
[378028872,1754674316723,-414.41,0.00019488,2]
[378028873,1754674316733,-400.0,0.00019488,2]
[378028874,1754674316743,-1355.51,0.00019488,2]
[378028875,1754674316753,-400.0,0.00019488,2]
[378028876,1754674316762,-400.0,0.00019488,2]
[378028877,1754674316772,-712.97,0.00019488,2]
[378028878,1754674316782,-400.0,0.00019488,2]
[378028879,1754674316791,-1433.19,0.00019488,2]
[378028880,1754674316800,-400.0,0.00019488,2]
[378028881,1754674316810,-400.0,0.00019488,2]
[378028882,1754674316820,-1279.98,0.00019488,2]
[378028883,1754674316830,-400.0,0.00019488,2]
[378028884,1754674316840,-2544.43,0.00019488,2]
[378028885,1754674316850,-3304.91,0.00019488,2]
[378028886,1754674316859,-545.33,0.00019488,2]
[378028887,1754674316870,-1361.67,0.00019488,2]
[378028888,1754674316879,-400.0,0.00019488,2]
[378028889,1754674316889,-680.15,0.00019488,2]
[378028890,1754674316899,-771.9,0.00019488,2]
[378028891,1754674316908,-446.42,0.00019488,2]
[378028892,1754674316918,-1015.86,0.00019488,2]
[378028893,1754674316927,-400.0,0.00019488,2]
[378028894,1754674316937,-400.0,0.00019488,2]
[378028895,1754674316948,-6584.79,0.00019488,2]
[378028896,1754674316958,-400.0,0.00019488,2]
[378028897,1754674316967,-400.0,0.00019488,2]
[378028898,1754674316977,-2692.03,0.00019488,2]
[378028899,1754674316986,-472.84,0.00019488,2]
[378028900,1754674316996,-400.0,0.00019488,2]
[378028901,1754674317006,-645.58,0.00019488,2]
[378028902,1754674317017,-400.0,0.00019488,2]
[378028903,1754674317027,-400.0,0.00019488,2]
[378028904,1754674317037,-434.44,0.00019488,2]
[378028905,1754674317047,-400.0,0.00019488,2]
[378028906,1754674317056,-510.44,0.00019488,2]
[378028907,1754674317066,-400.0,0.00019488,2]
[378028908,1754674317076,-400.0,0.00019488,2]
[378028909,1754674317089,-400.0,0.00019488,2]
[378028910,1754674317099,-400.0,0.00019488,2]
[378028911,1754674317108,-637.96,0.00019488,2]
[378028912,1754674317118,-400.0,0.00019488,2]
[378028913,1754674317129,-4087.5,0.00019488,2]
[378028914,1754674317138,-400.0,0.00019488,2]
[378028915,1754674317147,-400.0,0.00019488,2]
[378028916,1754674317158,-1000.0,0.00019488,2]
[378028917,1754674317167,-1167.59,0.00019488,2]
[378028918,1754674317177,-839.14,0.00019488,2]
[378028919,1754674317186,-423.67,0.00019488,2]
[378028920,1754674317195,-1923.32,0.00019488,2]
[378028921,1754674317205,-400.0,0.00019488,2]
[378028922,1754674317215,-400.0,0.00019488,2]
[378028923,1754674317225,-2534.72,0.00019488,2]
[378028924,1754674317234,-3221.54,0.00019488,2]
[378028925,1754674317244,-400.0,0.00019488,2]
[378028926,1754674317254,-2686.59,0.00019488,2]
[378028927,1754674317263,-2767.77,0.00019488,2]
[378028928,1754674317273,-4079.49,0.00019488,2]
[378028929,1754674317282,-1045.66,0.00019488,2]
[378028930,1754674317292,-151.0,0.00019489,2]
[378028931,1754674317301,-151.0,0.00019489,2]
[378028932,1754674317311,-151.0,0.00019489,2]
[378028933,1754674317320,-151.0,0.00019489,2]
[378028934,1754674317329,-151.0,0.00019489,2]
[378028935,1754674317339,-151.0,0.00019489,2]
[378028936,1754674317349,-151.0,0.00019489,2]
[378028937,1754674317358,-151.0,0.00019489,2]
[378028938,1754674317367,-151.0,0.00019489,2]
[378028939,1754674317376,-151.0,0.00019489,2]
[378028940,1754674317386,-175.595456,0.00019489,2]
[378028941,1754674317395,-175.595456,0.00019489,2]
[378028942,1754674317404,-3290.29,0.00019489,2]
[378028943,1754674317414,-2369.18,0.00019489,2]
[378028944,1754674317423,-13166.57,0.00019489,2]
[378028945,1754674317433,-1590.7,0.00019489,2]
[378028946,1754674317442,-1258.97,0.00019489,2]
[378028947,1754674317452,-2052.34,0.00019489,2]
[378028948,1754674317462,-508.01,0.00019489,2]
[378028949,1754674317471,-5234.06,0.00019489,2]
[378028950,1754674317480,-400.0,0.00019489,2]
[378028951,1754674317490,-2455.21,0.00019489,2]
[378028952,1754674317500,-1846.96,0.00019489,2]
[378028953,1754674317509,-1243.92,0.00019489,2]
[378028954,1754674317519,-1638.01,0.00019489,2]
[378028955,1754674317529,-1639.76,0.00019489,2]
[378028956,1754674317539,-1386.66,0.00019489,2]
[378028957,1754674317548,-2763.15,0.00019489,2]
[378028958,1754674317557,-3536.52,0.00019489,2]
[378028959,1754674317568,-2140.87,0.00019489,2]
[378028960,1754674317578,-1711.31,0.00019489,2]
[378028961,1754674317587,-449.95,0.00019489,2]
[378028962,1754674317597,-151.0,0.0001949,2]
[378028963,1754674317606,-151.737071,0.0001949,2]
[378028964,1754674317615,-151.0,0.0001949,2]
[378028965,1754674317902,-151.0,0.0001949,2]
[378028966,1754674317926,-151.0,0.0001949,2]
[378028967,1754674317949,-213.944039,0.0001949,2]
[378028968,1754674317962,-267.836724,0.0001949,2]
[378028969,1754674317972,-267.836724,0.0001949,2]
[378028970,1754674317981,-207.79,0.00019537,2]
[378028971,1754674317990,-235.0,0.00019557,2]
[378028972,1754674317999,-235.0,0.00019559,2]
[378028973,1754674318008,-209.4,0.00019564,2]
[378028974,1754674318018,-447.50625742,0.00019567,2]
[378028975,1754674318027,-1498.79808268,0.00019572,2]
[378028976,1754674318037,-168.0,0.00019574,2]
[378028977,1754674318046,-213.0,0.0001958,2]
[378028978,1754674318056,-222.0,0.00019589,2]
[378028979,1754674318065,-172.14711092,0.00019632,2]
[378028980,1754674318075,-277.35679052,0.00019639,2]
[378028981,1754674318088,-209.4,0.00019651,2]
[378028982,1754674318098,-1578.58201104,0.00019655,2]
[378028983,1754674318107,-1000.0,0.00019694,2]
[378028984,1754674318117,-151.0,0.000197,2]
[378028985,1754674318127,-220.732218,0.000197,2]
[378028986,1754674318136,-151.0,0.000197,2]
[378028987,1754674318145,-267.836724,0.000197,2]
[378028988,1754674318155,-267.836724,0.000197,2]
[378028989,1754674318165,-151.0,0.000197,2]
[378028990,1754674318175,-151.0,0.000197,2]
[378028991,1754674318184,-151.0,0.000197,2]
[378028992,1754674318193,-151.0,0.000197,2]
[378028993,1754674318203,-151.0,0.000197,2]
[378028994,1754674318215,-151.0,0.000197,2]
[378028995,1754674318225,-151.0,0.000197,2]
[378028996,1754674318235,-151.0,0.000197,2]
[378028997,1754674318244,-151.0,0.000197,2]
[378028998,1754674318253,-151.0,0.000197,2]
[378028999,1754674318263,-175.595456,0.000197,2]
[378029000,1754674318273,-175.595456,0.000197,2]
[378029001,1754674318283,-156.587,0.00019726,2]
[378029002,1754674318292,-209.4,0.00019738,2]
[378029003,1754674318302,-1658.36593939,0.00019739,2]
[378029004,1754674318312,-315.0,0.00019747,2]
[378029005,1754674318321,-160.0,0.0001975,2]
[378029006,1754674318331,-315.37,0.00019757,2]
[378029007,1754674318340,-400.0,0.0001976,2]
[378029008,1754674318350,-400.0,0.0001976,2]
[378029009,1754674318360,-661.11,0.0001976,2]
[378029010,1754674318370,-2954.91,0.0001976,2]
[378029011,1754674318380,-2275.54,0.0001976,2]
[378029012,1754674318389,-946.48,0.0001976,2]
[378029013,1754674318399,-848.32,0.0001976,2]
[378029014,1754674318409,-7691.76,0.0001976,2]
[378029015,1754674318418,-1032.75,0.0001976,2]
[378029016,1754674318428,-600.19,0.0001976,2]
[378029017,1754674318437,-1855.93,0.0001976,2]
[378029018,1754674318446,-675.93,0.0001976,2]
[378029019,1754674318455,-5291.16,0.0001976,2]
[378029020,1754674318465,-2731.24,0.0001976,2]
[378029021,1754674318475,-3569.89,0.0001976,2]
[378029022,1754674318485,-643.22,0.0001976,2]
[378029023,1754674318494,-1935.23,0.0001976,2]
[378029024,1754674318504,-400.0,0.0001976,2]
[378029025,1754674318513,-364.64952394,0.0001976,2]
[378029026,1754674318522,-821.85,0.0001976,2]
[378029027,1754674318531,-774.94,0.0001976,2]
[378029028,1754674318541,-538.44,0.0001976,2]
[378029029,1754674318550,-447.97,0.0001976,2]
[378029030,1754674318559,-500.0,0.00019761,2]
[378029031,1754674318570,-500.0,0.00019761,2]
[378029032,1754674318579,-947.0,0.00019761,2]
[378029033,1754674318588,-500.0,0.00019761,2]
[378029034,1754674318597,-350.0,0.00019761,2]
[378029035,1754674318607,-1798.0,0.00019761,2]
[378029036,1754674318616,-977.0,0.00019761,2]
[378029037,1754674318625,-183.659282,0.00019761,2]
[378029038,1754674318639,-1000.0,0.00019761,2]
[378029039,1754674318648,-2162.28,0.00019761,2]
[378029040,1754674318657,-788.52,0.00019761,2]
[378029041,1754674318667,-606.57,0.00019761,2]
[378029042,1754674318677,-691.64,0.00019761,2]
[378029043,1754674318686,-504.23,0.00019761,2]
[378029044,1754674318696,-711.68,0.00019761,2]
[378029045,1754674318708,-672.8,0.00019761,2]
[378029046,1754674318718,-767.72,0.00019761,2]
[378029047,1754674318728,-400.0,0.00019761,2]
[378029048,1754674318737,-411.37,0.00019761,2]
[378029049,1754674318747,-692.39,0.00019761,2]
[378029050,1754674318757,-460.18,0.00019761,2]
[378029051,1754674318767,-680.33,0.00019761,2]
[378029052,1754674318778,-418.64,0.00019761,2]
[378029053,1754674318788,-400.0,0.00019761,2]
[378029054,1754674318798,-1053.65,0.00019761,2]
[378029055,1754674318807,-400.0,0.00019761,2]
[378029056,1754674318817,-591.98,0.00019761,2]
[378029057,1754674318827,-400.0,0.00019761,2]
[378029058,1754674318836,-400.0,0.00019761,2]
[378029059,1754674318847,-400.0,0.00019761,2]
[378029060,1754674318856,-820.42,0.00019761,2]
[378029061,1754674318867,-540.05,0.00019761,2]
[378029062,1754674318876,-444.75,0.00019761,2]
[378029063,1754674318886,-400.0,0.00019761,2]
[378029064,1754674318897,-475.1,0.00019761,2]
[378029065,1754674318907,-1065.2,0.00019761,2]
[378029066,1754674318916,-663.95,0.00019761,2]
[378029067,1754674318926,-664.58,0.00019761,2]
[378029068,1754674318937,-365.01622934,0.00019761,2]
[378029069,1754674318946,-552.2,0.00019761,2]
[378029070,1754674318956,-795.59,0.00019761,2]
[378029071,1754674318965,-400.0,0.00019761,2]
[378029072,1754674318975,-1009.8,0.00019761,2]
[378029073,1754674318986,-400.0,0.00019761,2]
[378029074,1754674318995,-400.0,0.00019761,2]
[378029075,1754674319005,-400.0,0.00019761,2]
[378029076,1754674319015,-400.0,0.00019761,2]
[378029077,1754674319024,-400.0,0.00019761,2]
[378029078,1754674319034,-758.91,0.00019761,2]
[378029079,1754674319043,-400.0,0.00019761,2]
[378029080,1754674319053,-400.0,0.00019761,2]
[378029081,1754674319063,-405.9,0.00019761,2]
[378029082,1754674319073,-794.09,0.00019761,2]
[378029083,1754674319086,-860.42,0.00019761,2]
[378029084,1754674319096,-497.38,0.00019761,2]
[378029085,1754674319105,-400.0,0.00019761,2]
[378029086,1754674319114,-675.98,0.00019761,2]
[378029087,1754674319124,-400.0,0.00019761,2]
[378029088,1754674319134,-400.0,0.00019761,2]
[378029089,1754674319143,-1322.96,0.00019761,2]
[378029090,1754674319154,-515.94,0.00019761,2]
[378029091,1754674319163,-492.09,0.00019761,2]
[378029092,1754674319173,-1269.65,0.00019761,2]
[378029093,1754674319182,-1150.11,0.00019761,2]
[378029094,1754674319191,-729.76,0.00019761,2]
[378029095,1754674319200,-400.0,0.00019761,2]
[378029096,1754674319211,-786.33,0.00019761,2]
[378029097,1754674319220,-400.0,0.00019761,2]
[378029098,1754674319229,-400.0,0.00019761,2]
[378029099,1754674319239,-400.0,0.00019761,2]
[378029100,1754674319249,-400.0,0.00019761,2]
[378029101,1754674319258,-933.94,0.00019761,2]
[378029102,1754674319268,-1309.0,0.00019761,2]
[378029103,1754674319278,-630.93,0.00019761,2]
[378029104,1754674319287,-1106.53,0.00019761,2]
[378029105,1754674319297,-1201.36,0.00019761,2]
[378029106,1754674319306,-400.0,0.00019761,2]
[378029107,1754674319315,-623.4,0.00019761,2]
[378029108,1754674319325,-1959.17,0.00019761,2]
[378029109,1754674319334,-400.0,0.00019761,2]
[378029110,1754674319344,-948.04,0.00019761,2]
[378029111,1754674319353,-1232.12,0.00019761,2]
[378029112,1754674319363,-501.95,0.00019761,2]
[378029113,1754674319372,-400.0,0.00019761,2]
[378029114,1754674319382,-1029.5,0.00019761,2]
[378029115,1754674319391,-400.0,0.00019761,2]
[378029116,1754674319401,-400.0,0.00019761,2]
[378029117,1754674319410,-400.0,0.00019761,2]
[378029118,1754674319419,-1075.7,0.00019761,2]
[378029119,1754674319429,-400.0,0.00019761,2]
[378029120,1754674319438,-1017.42,0.00019761,2]
[378029121,1754674319447,-467.67,0.00019761,2]
[378029122,1754674319458,-743.32,0.00019761,2]
[378029123,1754674319467,-400.0,0.00019761,2]
[378029124,1754674319477,-466.11,0.00019761,2]
[378029125,1754674319486,-496.93,0.00019761,2]
[378029126,1754674319495,-400.0,0.00019761,2]
[378029127,1754674319505,-400.0,0.00019761,2]
[378029128,1754674319515,-1260.4,0.00019761,2]
[378029129,1754674319525,-470.18,0.00019761,2]
[378029130,1754674319534,-400.0,0.00019761,2]
[378029131,1754674319543,-641.02,0.00019761,2]
[378029132,1754674319553,-400.0,0.00019761,2]
[378029133,1754674319562,-400.0,0.00019761,2]
[378029134,1754674319571,-3797.91,0.00019761,2]
[378029135,1754674319581,-400.0,0.00019761,2]
[378029136,1754674319591,-1052.14,0.00019761,2]
[378029137,1754674319601,-889.41,0.00019761,2]
[378029138,1754674319610,-739.75,0.00019761,2]
[378029139,1754674319619,-3365.51,0.00019761,2]
[378029140,1754674319629,-1750.29,0.00019761,2]
[378029141,1754674319639,-1099.06,0.00019761,2]
[378029142,1754674319649,-1630.68,0.00019761,2]
[378029143,1754674319658,-3225.29,0.00019761,2]
[378029144,1754674319668,-2289.35,0.00019761,2]
[378029145,1754674319678,-1124.14,0.00019761,2]
[378029146,1754674319688,-400.0,0.00019761,2]
[378029147,1754674319697,-838.76,0.00019761,2]
[378029148,1754674319707,-1564.85,0.00019761,2]
[378029149,1754674319717,-752.21,0.00019761,2]
[378029150,1754674319726,-1259.02,0.00019761,2]
[378029151,1754674319736,-1360.45,0.00019761,2]
[378029152,1754674319746,-400.0,0.00019761,2]
[378029153,1754674319756,-172.95,0.00019761,2]
[378029154,1754674319765,-447.46,0.00019761,2]
[378029155,1754674319775,-400.0,0.00019761,2]
[378029156,1754674319785,-457.11,0.00019761,2]
[378029157,1754674319795,-907.31,0.00019761,2]
[378029158,1754674319805,-635.96,0.00019761,2]
[378029159,1754674319815,-516.43,0.00019761,2]
[378029160,1754674319824,-2511.44,0.00019761,2]
[378029161,1754674319834,-841.87,0.00019761,2]
[378029162,1754674319843,-400.0,0.00019761,2]
[378029163,1754674319852,-909.41,0.00019761,2]
[378029164,1754674319862,-400.0,0.00019761,2]
[378029165,1754674319871,-633.54,0.00019761,2]
[378029166,1754674319881,-1757.88,0.00019761,2]
[378029167,1754674319891,-3698.85,0.00019761,2]
[378029168,1754674319901,-1660.57,0.00019761,2]
[378029169,1754674319910,-748.76,0.00019761,2]
[378029170,1754674319920,-400.0,0.00019761,2]
[378029171,1754674319929,-2130.8,0.00019761,2]
[378029172,1754674319938,-724.03,0.00019761,2]
[378029173,1754674319947,-466.12,0.00019761,2]
[378029174,1754674319958,-420.45,0.00019761,2]
[378029175,1754674319968,-1000.99,0.00019761,2]
[378029176,1754674319977,-956.66,0.00019761,2]
[378029177,1754674319987,-400.0,0.00019761,2]
[378029178,1754674319997,-825.21,0.00019761,2]
[378029179,1754674320007,-1301.7,0.00019761,2]
[378029180,1754674320016,-1094.31,0.00019761,2]
[378029181,1754674320026,-498.58,0.00019761,2]
[378029182,1754674320035,-815.06,0.00019761,2]
[378029183,1754674320045,-1195.76,0.00019761,2]
[378029184,1754674320055,-442.27,0.00019761,2]
[378029185,1754674320064,-552.06,0.00019761,2]
[378029186,1754674320074,-484.27,0.00019761,2]
[378029187,1754674320087,-400.0,0.00019761,2]
[378029188,1754674320097,-624.41,0.00019761,2]
[378029189,1754674320110,-2556.32,0.00019761,2]
[378029190,1754674320123,-844.68,0.00019761,2]
[378029191,1754674320135,-440.75,0.00019761,2]
[378029192,1754674320145,-1182.8,0.00019761,2]
[378029193,1754674320158,-1893.37,0.00019761,2]
[378029194,1754674320168,-400.0,0.00019761,2]
[378029195,1754674320178,-520.64,0.00019761,2]
[378029196,1754674320188,-3101.03,0.00019761,2]
[378029197,1754674320198,-524.52,0.00019761,2]
[378029198,1754674320209,-616.08,0.00019761,2]
[378029199,1754674320220,-732.88,0.00019761,2]
[378029200,1754674320230,-856.38,0.00019761,2]
[378029201,1754674320240,-4832.78,0.00019761,2]
[378029202,1754674320250,-627.0,0.00019761,2]
[378029203,1754674320259,-400.0,0.00019761,2]
[378029204,1754674320269,-952.86,0.00019761,2]
[378029205,1754674320279,-400.0,0.00019761,2]
[378029206,1754674320289,-1841.68,0.00019761,2]
[378029207,1754674320298,-400.0,0.00019761,2]
[378029208,1754674320402,-480.32,0.00019761,2]
[378029209,1754674320412,-400.0,0.00019761,2]
[378029210,1754674320422,-3627.65,0.00019761,2]
[378029211,1754674320432,-803.51,0.00019761,2]
[378029212,1754674320442,-429.23,0.00019761,2]
[378029213,1754674320452,-467.89,0.00019761,2]
[378029214,1754674320465,-1771.62,0.00019761,2]
[378029215,1754674320475,-781.89,0.00019761,2]
[378029216,1754674320484,-1163.42,0.00019761,2]
[378029217,1754674320494,-585.49,0.00019761,2]
[378029218,1754674320504,-784.71,0.00019761,2]
[378029219,1754674320513,-842.16,0.00019761,2]
[378029220,1754674320522,-971.72,0.00019761,2]
[378029221,1754674320532,-498.13,0.00019761,2]
[378029222,1754674320542,-437.29,0.00019761,2]
[378029223,1754674320552,-1364.1,0.00019761,2]
[378029224,1754674320561,-4194.96,0.00019761,2]
[378029225,1754674320571,-3720.86,0.00019761,2]
[378029226,1754674320580,-400.0,0.00019761,2]
[378029227,1754674320590,-400.0,0.00019761,2]
[378029228,1754674320600,-482.49,0.00019761,2]
[378029229,1754674320609,-932.41,0.00019761,2]
[378029230,1754674320618,-467.73,0.00019761,2]
[378029231,1754674320628,-694.04,0.00019761,2]
[378029232,1754674320637,-785.65,0.00019761,2]
[378029233,1754674320647,-1073.17,0.00019761,2]
[378029234,1754674320656,-2564.99,0.00019761,2]
[378029235,1754674320666,-1271.83,0.00019761,2]
[378029236,1754674320675,-400.0,0.00019761,2]
[378029237,1754674320685,-501.58,0.00019761,2]
[378029238,1754674320694,-561.21,0.00019761,2]
[378029239,1754674320703,-695.37,0.00019761,2]
[378029240,1754674320716,-1291.31,0.00019761,2]
[378029241,1754674320726,-400.0,0.00019761,2]
[378029242,1754674320735,-1430.86,0.00019761,2]
[378029243,1754674320745,-3151.61,0.00019761,2]
[378029244,1754674320755,-836.4,0.00019761,2]
[378029245,1754674320764,-421.02,0.00019761,2]
[378029246,1754674320774,-850.6,0.00019761,2]
[378029247,1754674320784,-2829.87,0.00019761,2]
[378029248,1754674320793,-400.0,0.00019761,2]
[378029249,1754674320802,-3147.45,0.00019761,2]
[378029250,1754674320812,-2412.01,0.00019761,2]
[378029251,1754674320821,-3174.96,0.00019761,2]
[378029252,1754674320830,-1344.29,0.00019761,2]
[378029253,1754674320840,-400.0,0.00019761,2]
[378029254,1754674320850,-397.28776982,0.00019762,2]
[378029255,1754674320859,-350.0,0.00019762,2]
[378029256,1754674320868,-500.0,0.00019762,2]
[378029257,1754674320877,-400.0,0.00019762,2]
[378029258,1754674320886,-475.15,0.00019762,2]
[378029259,1754674320895,-400.0,0.00019762,2]
[378029260,1754674320905,-400.0,0.00019762,2]
[378029261,1754674320914,-531.991163,0.00019762,2]
[378029262,1754674320925,-400.0,0.00019762,2]
[378029263,1754674320934,-400.0,0.00019762,2]
[378029264,1754674320944,-400.0,0.00019762,2]
[378029265,1754674320953,-400.0,0.00019762,2]
[378029266,1754674320965,-400.0,0.00019762,2]
[378029267,1754674320975,-400.0,0.00019762,2]
[378029268,1754674320984,-400.0,0.00019762,2]
[378029269,1754674320994,-300.0,0.00019762,2]
[378029270,1754674321004,-400.0,0.00019762,2]
[378029271,1754674321013,-613.14,0.00019762,2]
[378029272,1754674321023,-487.53,0.00019762,2]
[378029273,1754674321033,-400.0,0.00019762,2]
[378029274,1754674321042,-400.0,0.00019762,2]
[378029275,1754674321051,-400.0,0.00019762,2]
[378029276,1754674321061,-400.0,0.00019762,2]
[378029277,1754674321070,-470.26,0.00019762,2]
[378029278,1754674321080,-400.0,0.00019762,2]
[378029279,1754674321093,-400.0,0.00019762,2]
[378029280,1754674321103,-400.0,0.00019762,2]
[378029281,1754674321112,-400.0,0.00019762,2]
[378029282,1754674321122,-400.0,0.00019762,2]
[378029283,1754674321133,-400.0,0.00019762,2]
[378029284,1754674321142,-400.0,0.00019762,2]
[378029285,1754674321151,-462.27,0.00019762,2]
[378029286,1754674321161,-580.1,0.00019762,2]
[378029287,1754674321171,-400.0,0.00019762,2]
[378029288,1754674321180,-400.0,0.00019762,2]
[378029289,1754674321190,-400.0,0.00019762,2]
[378029290,1754674321199,-400.0,0.00019762,2]
[378029291,1754674321211,-479.7,0.00019762,2]
[378029292,1754674321220,-568.03,0.00019762,2]
[378029293,1754674321230,-400.0,0.00019762,2]
[378029294,1754674321239,-400.0,0.00019762,2]
[378029295,1754674321249,-400.0,0.00019762,2]
[378029296,1754674321258,-421.44,0.00019762,2]
[378029297,1754674321267,-418.64,0.00019762,2]
[378029298,1754674321276,-400.0,0.00019762,2]
[378029299,1754674321286,-504.49,0.00019762,2]
[378029300,1754674321295,-700.9,0.00019762,2]
[378029301,1754674321304,-520.77,0.00019762,2]
[378029302,1754674321313,-400.0,0.00019762,2]
[378029303,1754674321322,-400.0,0.00019762,2]
[378029304,1754674321331,-400.0,0.00019762,2]
[378029305,1754674321340,-400.0,0.00019762,2]
[378029306,1754674321349,-400.0,0.00019762,2]
[378029307,1754674321358,-266.94573725,0.00019762,2]
[378029308,1754674321367,-400.0,0.00019762,2]
[378029309,1754674321377,-400.0,0.00019762,2]
[378029310,1754674321386,-400.0,0.00019762,2]
[378029311,1754674321395,-400.0,0.00019762,2]
[378029312,1754674321404,-400.0,0.00019762,2]
[378029313,1754674321413,-400.0,0.00019762,2]